[Event "Tata Steel India Women Rapid 2024"]
[Site "Kolkata"]
[Date "2024.11.15"]
[Round "9.2"]
[White "Divya Deshmukh"]
[Black "Vantika Agrawal"]
[Result "1-0"]
[ECO "C13"]
[WhiteElo "2493"]
[BlackElo "2392"]
[Annotator "TA"]
[PlyCount "43"]
[EventDate "2024.11.06"]
[EventType "tourn"]
[EventCountry "IND"]
[SourceTitle "playchess.com"]
[Source "ChessBase"]
[SourceQuality "1"]
[TimeControl "1500+10"]

{[%evp 16,43,9,0,0,0,0,0,0,0,0,0,0,0,7,0,0,0,10,0,333,312,302,296,897,885,2843,2702,29977,7674]} 1. e4 {[%emt 0:00:01]} e6 {[%emt 0:00:19]} 2. d4 {[%emt 0:00:07]} d5 {[%emt 0:00:02]} 3. Nc3 {[%emt 0:00:04]} Nf6 {[%emt 0:00:02]} 4. Bg5 {[%emt 0:00:03]} dxe4 {[%emt 0:00:10]} 5. Nxe4 {[%emt 0:00:02]} Be7 {[%emt 0:00:04]} 6. Nxf6+ {[%emt 0:00:04]} Bxf6 {[%emt 0:00:20]} 7. Bxf6 {[%emt 0:00:02]} Qxf6 {[%emt 0:00:04]} 8. Nf3 {[%emt 0:00:02][%cal Bg1f3,Bf3g5,Bg5e4,Be4g3,Bg3f5][%mdl 32]} O-O {[%emt 0:00:24]} 9. Qd2 {[%emt 0:00:05]} c5 {[%emt 0:03:56]} 10. O-O-O {[%emt 0:00:06]} Rd8 {[%emt 0:01:37]} 11. Bd3 {[%emt 0:00:02]} cxd4 {[%emt 0:03:05] The position is equal.} 12. Ng5 {[%emt 0:00:07]} h6 {[%emt 0:02:10]} 13. Ne4 {[%emt 0:00:03]} Qe7 {[%emt 0:01:39]} 14. g4 $1 {[%emt 0:00:02]} f5 {[%emt 0:09:42]} 15. gxf5 {[%emt 0:01:14]} exf5 {[%emt 0:00:02]} 16. Ng3 $36 {[%emt 0:00:02][%cal Oh1g1][%mdl 2048] [#] Strongly threatening Rhg1! White has some pressure.} Qf7 {[%emt 0:00:23]} 17. Qe2 {[%emt 0:04:13]} Be6 {[%emt 0:02:45][%mdl 8192] Repels Bc4} (17... Qxa2 $2 {perishes.} 18. Bc4+ $18 (18. Nxf5 $2 Qa1+ 19. Kd2 Qa5+ 20. b4 Qxb4+ 21. Kc1 Bxf5 $17) (18. Nxf5 $2 Qa1+ 19. Kd2 Qa5+ 20. b4 Qxb4+ 21. Kc1 Bxf5 $19)) (17... Kh7 $1 $11 {and Black has nothing to worry.}) 18. Rhe1 {[%emt 0:03:08][%cal Bh1e1,Be1g1,Bg1g6][%mdl 32]} Bd5 {[%emt 0:01:13]} 19. Nxf5 {[%emt 0:00:04] Rg1 is the strong threat.} (19. Bxf5 Nc6 $11) 19... Kf8 $2 {[%emt 0:00:11]} (19... Kh8 20. Qd2 (20. Nxd4 Nc6 $14) (20. Rg1 Rg8 $18) 20... Qf6) 20. Rg1 $18 {[%emt 0:00:07]} ({Not} 20. Nxd4 Nc6 $16) 20... g6 {[%emt 0:00:09] [#]} 21. Rxg6 $3 {[%emt 0:00:21][%mdl 512]} Re8 {[%emt 0:00:10]} (21... Nc6 22. Rxh6) 22. Qh5 {[%emt 0:00:06] Weighted Error Value: White=0.03 (flawless) /Black=1.10.  Loses game:     	---       	Black=1      Mistake:       	---       	Black=1      Inaccurate:     	---       	Black=1      OK:         	White=5     	Black=5      Best:        	White=2     	---        Strong:       	White=1     	---} 1-0

[Event "Tata Steel India Women Rapid 2024"]
[Site "Kolkata"]
[Date "2024.11.15"]
[Round "9.3"]
[White "Kosteniuk, Alexandra"]
[Black "Dzagnidze, Nana"]
[Result "1/2-1/2"]
[ECO "C02"]
[WhiteElo "2487"]
[BlackElo "2518"]
[Annotator "RC"]
[PlyCount "102"]
[EventDate "2024.11.06"]
[EventType "tourn"]
[EventCountry "IND"]
[SourceTitle "playchess.com"]
[Source "ChessBase"]
[SourceQuality "1"]
[TimeControl "1500+10"]

1. e4 {[%emt 0:00:02]} e6 {[%emt 0:00:05]} 2. d4 {[%emt 0:00:02]} d5 {[%emt 0:00:02]} 3. e5 {[%emt 0:00:01]} c5 {[%emt 0:00:03]} 4. c3 {[%emt 0:00:01]} Nc6 {[%emt 0:00:03]} 5. Nf3 {[%emt 0:00:02]} Qb6 {[%emt 0:00:04]} 6. Na3 {[%emt 0:00:02]} cxd4 {[%emt 0:00:16]} 7. cxd4 {[%emt 0:00:01]} Bd7 {[%emt 0:06:05]} 8. Be2 {[%emt 0:00:02]} Nh6 {[%emt 0:01:12]} 9. Nc2 {[%emt 0:00:27]} Rc8 {[%emt 0:00:19]} 10. O-O {[%emt 0:00:12]} Nf5 {[%emt 0:01:28]} 11. Rb1 {[%emt 0:00:12]} Be7 {[%emt 0:00:10]} 12. b4 {[%emt 0:00:49]} Na5 {[%emt 0:00:50]} 13. g4 {[%emt 0:05:17]} Nh4 {[%emt 0:00:34]} 14. Nxh4 {[%emt 0:00:06]} Bxh4 {[%emt 0:00:01]} 15. Na3 {[%emt 0:01:14]} Nc4 {[%emt 0:01:45]} 16. Nxc4 {[%emt 0:00:16]} dxc4 {[%emt 0:00:02]} 17. Be3 {[%emt 0:02:07]} c3 {[%emt 0:02:21]} 18. Qc2 {[%emt 0:02:04]} Qd8 {[%emt 0:00:30]} 19. b5 {[%emt 0:00:42]} Bg5 {[%emt 0:00:03]} 20. f4 {[%emt 0:00:12]} Be7 {[%emt 0:00:02]} 21. Rb3 {[%emt 0:00:36]} O-O {[%emt 0:00:16]} 22. Bd3 {[%emt 0:00:22]} h6 {[%emt 0:00:27]} 23. Rxc3 {[%emt 0:00:41]} Qa5 {[%emt 0:00:01]} 24. Rxc8 {[%emt 0:01:09]} Rxc8 {[%emt 0:00:02]} 25. Qe2 {[%emt 0:00:02]} Qa3 {[%emt 0:00:41]} 26. Bf2 {[%emt 0:02:17]} Rc3 {[%emt 0:00:49]} 27. Rd1 {[%emt 0:00:28]} Rc1 {[%emt 0:00:07]} 28. Rxc1 {[%emt 0:00:41]} Qxc1+ {[%emt 0:00:02]} 29. Kg2 {[%emt 0:00:01]} g6 {[%emt 0:03:54]} 30. a4 {[%emt 0:00:56]} a6 {[%emt 0:03:06]} 31. Be3 {[%emt 0:01:21]} Qa3 {[%emt 0:01:01]} 32. f5 {[%emt 0:00:39]} g5 {[%emt 0:00:14]} 33. f6 {[%emt 0:00:40]} Bb4 {[%emt 0:00:18]} 34. Bc2 {[%emt 0:02:47]} axb5 {[%emt 0:00:06]} 35. axb5 {[%emt 0:00:01]} Kf8 {[%emt 0:02:29]} 36. Bf2 {[%emt 0:00:02]} Ke8 {[%emt 0:00:56]} 37. Qc4 {[%emt 0:00:16]} Qb2 {[%emt 0:00:36]} 38. Qc7 {[%emt 0:00:18]} Ba5 {[%emt 0:00:16]} 39. Qc5 {[%emt 0:01:00]} Bb4 {[%emt 0:00:05]} 40. Qc4 {[%emt 0:00:13]} Ba5 {[%emt 0:00:05]} 41. Qc5 {[%emt 0:00:39]} Bb4 {[%emt 0:00:02]} 42. Qc7 {[%emt 0:00:05]} Ba5 {[%emt 0:00:05]} 43. Qd6 {[%emt 0:00:25]} Bd8 {[%emt 0:00:05]} 44. Be4 {[%emt 0:00:40]} Qxb5 {[%emt 0:00:09]} 45. d5 {[%emt 0:00:29]} Qc4 {[%emt 0:00:23]} 46. Bf3 {[%emt 0:00:19]} Qa2 {[%emt 0:00:15]} 47. Kg3 {[%emt 0:00:30]} Qa6 {[%emt 0:00:17]} 48. dxe6 {[%emt 0:01:27]} Qxd6 {[%emt 0:00:11]} 49. exf7+ {[%emt 0:00:06]} Kxf7 {[%emt 0:00:02]} 50. exd6 {[%emt 0:00:01]} Bxf6 {[%emt 0:00:05]} 51. Bxb7 {[%emt 0:00:18]} Be5+ {[%emt 0:00:01]} 1/2-1/2

[Event "Tata Steel India Women Rapid 2024"]
[Site "Kolkata"]
[Date "2024.11.15"]
[Round "9.4"]
[White "Koneru, Humpy"]
[Black "Vaishali, Rameshbabu"]
[Result "1/2-1/2"]
[ECO "A30"]
[WhiteElo "2530"]
[BlackElo "2490"]
[Annotator "TA"]
[PlyCount "100"]
[EventDate "2024.11.06"]
[EventType "tourn"]
[EventCountry "IND"]
[SourceTitle "playchess.com"]
[Source "ChessBase"]
[SourceQuality "1"]
[TimeControl "1500+10"]

{[%evp 26,100,-45,-37,-35,-44,-16,-31,0,-47,-52,-62,-63,-54,-59,-58,0,-52,0,-63,-42,-61,-58,-70,-72,-101,-57,-92,-60,-75,-73,-75,-96,-114,-104,-101,-108,-146,-158,-158,-119,-107,-116,-185,-139,-142,-105,-182,-112,-134,-139,-113,-68,-64,-25,-98,-98,-146,-159,-143,-68,-54,0,0,0,0,67,54,64,0,0,0,66,0,0,0,87]} 1. Nf3 {[%emt 0:00:04]} c5 {[%emt 0:00:03]} 2. c4 {[%emt 0:00:10]} Nf6 {[%emt 0:00:03]} 3. b3 {[%emt 0:01:23]} g6 {[%emt 0:00:19]} 4. Bb2 {[%emt 0:00:08]} Bg7 {[%emt 0:00:02]} 5. g3 {[%emt 0:00:08]} Nc6 {[%emt 0:00:23]} 6. Bg2 {[%emt 0:00:10]} d6 {[%emt 0:00:06] seems to push 6...0-0 aside. A30: Symmetrical English: Double Fianchetto and Hedgehog.} 7. d4 {[%emt 0:00:37]} cxd4 {[%emt 0:00:10]} 8. Nxd4 {[%emt 0:00:07]} Bd7 {[%emt 0:00:04]} 9. Nc3 {[%emt 0:00:42]} h5 {[%emt 0:01:28]} 10. Nf3 $146 {[%emt 0:00:25]} ({Predecessor:} 10. h3 Qa5 11. e3 Rc8 12. Qd2 O-O 13. Rd1 Rfd8 14. O-O a6 15. Rfe1 Kf8 16. Nxc6 Bxc6 {1-0 Erigaisi,A (2675)-Le,Q (2709) Chess.com Rapid Wk12 Swiss 2022 (7)}) 10... Ne4 {[%emt 0:00:52]} 11. Nxe4 {[%emt 0:03:08]} Bxb2 {[%emt 0:00:04]} 12. Rb1 {[%emt 0:00:04]} Qa5+ {[%emt 0:00:15]} 13. Qd2 {[%emt 0:01:23]} Qxd2+ {[%emt 0:00:08]} 14. Kxd2 {[%emt 0:00:37]} Ba3 {[%emt 0:00:44]} 15. e3 {[%emt 0:00:32]} Bf5 {[%emt 0:01:15]} 16. Nh4 $1 {[%emt 0:00:12]} Bd7 {[%emt 0:00:18]} 17. Nf3 {[%emt 0:00:05]} O-O {[%emt 0:02:14]} 18. Ke2 {[%emt 0:02:37]} Bf5 {[%emt 0:00:33]} 19. Nh4 {[%emt 0:01:45]} Bg4+ {[%emt 0:00:05]} 20. Nf3 {[%emt 0:00:09]} Bf5 {[%emt 0:04:26]} 21. Nh4 $1 {[%emt 0:00:03]} Bg4+ {[%emt 0:00:01]} 22. Nf3 $1 {[%emt 0:00:02]} a6 {[%emt 0:00:02]} 23. h3 {[%emt 0:00:20]} Bf5 {[%emt 0:00:09]} 24. Nh4 {[%emt 0:00:26]} Bd7 {[%emt 0:00:06]} 25. Rbd1 {[%emt 0:02:26]} Rfd8 {[%emt 0:00:23]} 26. Nc3 {[%emt 0:03:16]} Rab8 {[%emt 0:00:51]} 27. Nf3 {[%emt 0:01:02]} b5 {[%emt 0:00:15]} 28. Nd2 {[%emt 0:00:23]} Kf8 {[%emt 0:02:20]} 29. Be4 {[%emt 0:02:00]} Na5 {[%emt 0:01:23]} 30. Bd3 {[%emt 0:00:06]} Rdc8 {[%emt 0:00:37]} 31. Ncb1 {[%emt 0:00:35] [#]} Bb2 $1 {[%emt 0:00:11]} 32. f4 {[%emt 0:00:33]} Be6 {[%emt 0:00:59]} 33. cxb5 {[%emt 0:00:28]} axb5 {[%emt 0:00:03]} 34. Rdf1 {[%emt 0:00:55]} (34. Ne4 $17 {is a better defense.}) 34... Kg7 {[%emt 0:04:18]} (34... f5 $19 35. g4 Nc6 (35... hxg4 36. hxg4 fxg4 37. Bxg6 $15) (35... fxg4 36. f5 $17) 36. gxh5 gxh5) 35. f5 $17 {[%emt 0:01:22]} Bd5 {[%emt 0:00:08]} 36. Rhg1 {[%emt 0:00:06] [#]} (36. Nf3 $17) 36... g5 {[%emt 0:00:39]} (36... Nc6 $1 $19 {Hoping for ...Ne5.} 37. e4 Nd4+ 38. Ke3 Bb7) 37. Be4 {[%emt 0:00:25]} Bxe4 {[%emt 0:00:22]} 38. Nxe4 {[%emt 0:00:02]} f6 {[%emt 0:00:10]} 39. Rd1 {[%emt 0:00:07]} b4 {[%emt 0:01:03]} (39... Rc2+ 40. Kd3 Rbc8 41. b4) 40. Rd5 {[%emt 0:00:58]} (40. Nf2 $1 $11 {keeps the balance.}) 40... Nc6 $17 {[%emt 0:00:10]} 41. Nbd2 {[%emt 0:00:03]} (41. Rd2 $142 Ba1 42. Na3) 41... Ne5 $17 {[%emt 0:00:21]} 42. Rb1 {[%emt 0:00:33]} Ba3 {[%emt 0:00:50]} (42... Rc2 $17 {aiming for ...Rbc8.} 43. Kd1 Rbc8) 43. Nf3 $1 $15 {[%emt 0:00:02]} Rc2+ {[%emt 0:01:07]} ({Black should try} 43... Nxf3 $1 $15 44. Kxf3 Rc2) 44. Rd2 $11 {[%emt 0:00:02]} Rbc8 {[%emt 0:00:02]} 45. Nd4 {[%emt 0:00:18]} Rc1 {[%emt 0:00:40]} (45... Rxd2+ $11 46. Kxd2 Kf7) 46. Rxc1 $1 $14 {[%emt 0:00:15]} Rxc1 {[%emt 0:00:06]} 47. Rd1 {[%emt 0:00:09]} Rc8 {[%emt 0:00:16]} 48. Rd2 {[%emt 0:00:36]} Rc1 $1 {[%emt 0:00:05]} 49. Rd1 {[%emt 0:00:01]} (49. Rc2 $1 $14) 49... Rc8 $11 {[%emt 0:00:03]} 50. Rd2 {[%emt 0:00:01]} ({Better is} 50. h4 $11) 50... Rc1 $1 {[%emt 0:00:03]} 1/2-1/2

[Event "Tata Steel India Women Rapid 2024"]
[Site "Kolkata"]
[Date "2024.11.15"]
[Round "9.5"]
[White "Lagno, Kateryna"]
[Black "Dronavalli, Harika"]
[Result "1-0"]
[ECO "C11"]
[WhiteElo "2527"]
[BlackElo "2493"]
[Annotator "TA"]
[PlyCount "99"]
[EventDate "2024.11.06"]
[EventType "tourn"]
[EventCountry "IND"]
[SourceTitle "playchess.com"]
[Source "ChessBase"]
[SourceQuality "1"]
[TimeControl "1500+10"]

1. e4 {[%emt 0:00:01]} e6 {[%emt 0:00:01]} 2. Nf3 {[%emt 0:00:04]} d5 {[%emt 0:00:01]} 3. Nc3 {[%emt 0:00:03]} Nf6 {[%emt 0:00:36]} 4. e5 {[%emt 0:00:02]} Nfd7 {[%emt 0:00:15]} 5. d4 {[%emt 0:00:02]} c5 {[%emt 0:00:02]} 6. Ne2 {[%emt 0:00:03]} Nc6 {[%emt 0:00:11] The main line 6...Nc6 scores better than 6...cxd4.} 7. c3 {[%emt 0:00:01]} Be7 {[%emt 0:00:58]} 8. a3 {[%emt 0:00:09] C11: French: Classical System: 4 e5 and 4 Bg5 dxe4.} O-O {[%emt 0:00:45]} 9. b4 {[%emt 0:00:37]} cxd4 {[%emt 0:01:20]} 10. cxd4 {[%emt 0:00:02]} f6 {[%emt 0:01:26]} 11. Nf4 {[%emt 0:00:03]} Ndxe5 {[%emt 0:00:43]} 12. dxe5 {[%emt 0:00:08]} fxe5 {[%emt 0:00:01]} 13. Ne2 {[%emt 0:01:07]} e4 {[%emt 0:02:56]} 14. Nfd4 {[%emt 0:00:02]} e5 $146 {[%emt 0:02:57]} ({Predecessor:} 14... Nxd4 15. Nxd4 e5 16. Nb3 Qb6 17. Ra2 d4 18. Bc4+ Kh8 19. O-O Qg6 20. Re1 Bg4 {0-1 Fernandez Guillen,E (2466)-Bluebaum,M (2663) Titled Tuesday intern op 07th Feb Late blitz 2023 (3)}) 15. Nxc6 {[%emt 0:00:35]} bxc6 {[%emt 0:00:01]} 16. Ng3 {[%emt 0:00:15]} a5 {[%emt 0:01:07]} 17. b5 {[%emt 0:03:04]} Bc5 {[%emt 0:04:08]} 18. Be3 {[%emt 0:02:03]} Bxe3 {[%emt 0:02:32]} 19. fxe3 {[%emt 0:00:02]} cxb5 {[%emt 0:00:02]} 20. Bxb5 {[%emt 0:01:19]} Be6 {[%emt 0:02:41]} 21. a4 {[%emt 0:02:32]} Qg5 {[%emt 0:00:44]} 22. Qd2 {[%emt 0:00:56]} Rac8 {[%emt 0:02:08]} 23. Rf1 {[%emt 0:00:29]} Qh4 {[%emt 0:00:02]} 24. Rxf8+ {[%emt 0:01:12]} Rxf8 {[%emt 0:00:00]} 25. O-O-O {[%emt 0:00:26]} (25. Qxa5 $2 Qxh2 26. Nf1 Qxg2 $17) 25... Qxh2 {[%emt 0:00:02]} 26. Nf1 {[%emt 0:00:54]} Qg1 {[%emt 0:00:08]} 27. Kb1 {[%emt 0:02:19]} h5 {[%emt 0:01:07]} 28. Qb2 {[%emt 0:01:33]} Bg4 {[%emt 0:00:57]} 29. Rc1 {[%emt 0:00:23]} d4 {[%emt 0:00:02]} 30. exd4 {[%emt 0:01:57]} exd4 {[%emt 0:00:43]} 31. Nd2 {[%emt 0:00:35]} Qe3 {[%emt 0:00:23]} 32. Nc4 {[%emt 0:00:10]} (32. Qb3+ Qxb3+ 33. Nxb3 d3 34. Bc4+ Kh8 $15) 32... Qd3+ {[%emt 0:00:12]} 33. Ka1 {[%emt 0:00:01]} (33. Qc2 Rf2 34. Qxd3 exd3 $11) 33... e3 $2 {[%emt 0:00:39]} (33... Be6 $1 $11 {and Black is okay.}) 34. Ne5 $1 $18 {[%emt 0:00:18]} Qe4 $2 {[%emt 0:00:25]} (34... Qd2 {is tougher.} 35. Nxg4 Qxb2+ (35... hxg4 36. Qb3+ Kh7 37. Rh1+ Kg6 38. Bd3+ Kf6 39. Rf1+ Ke7 40. Qb7+ Kd6 41. Qb6+ Kd5 42. Qb3+ Kd6 43. Rxf8 $18) 36. Kxb2 hxg4) 35. Bc4+ {[%emt 0:01:21]} Kh8 {[%emt 0:00:01]} 36. Nf7+ $2 {[%emt 0:01:07]} (36. Qa3 $18 Rf5 37. Ng6+ (37. Nxg4 e2 $16) 37... Kh7 38. Bd3) 36... Rxf7 $1 $11 {[%emt 0:00:01]} 37. Bxf7 {[%emt 0:00:02]} d3 $2 {[%emt 0:00:29][%mdl 8192]} (37... e2 $11 38. Qb8+ Kh7 39. Qg8+ Kh6 40. Qh8+ Kg5 41. Qd8+ (41. Qxg7+ $2 Kh4 $19) 41... Kf5 (41... Kf4 42. Qc7+ Kg5 43. Qxa5+ Kf6 44. Bc4 $16) 42. Qxa5+ Kf6) 38. Qb8+ {[%emt 0:05:33]} Kh7 39. Qg8+ {[%emt 0:00:00]} Kh6 {[%emt 0:00:01]} 40. Qh8+ {[%emt 0:00:00]} Kg5 {[%emt 0:00:03] [#]} 41. Qxg7+ $2 {[%emt 0:00:00]} (41. Qd8+ $1 $18 Kh6 42. Rc4 (42. Qxa5 $2 d2 $19) (42. Qh8+ Kg5 $18) 42... Qe5+ 43. Ka2) 41... Kh4 $11 {[%emt 0:00:01]} 42. Qf6+ {[%emt 0:00:00]} (42. Rc4 Qe7 43. Qg6 Qe5+ 44. Ka2 d2 $17) 42... Kg3 {[%emt 0:00:01]} 43. Qd6+ {[%emt 0:00:00]} (43. Rc4 $5 Qf5 $8 44. Qd6+ Kxg2 45. Bd5+ Bf3 46. Bxf3+ Qxf3 47. Qg6+ (47. Qxd3 e2 $11) 47... Kf2 48. Rc1 $11 (48. Qxd3 e2 $11)) 43... Kf2 $1 {[%emt 0:01:02]} (43... Kxg2 44. Bd5) 44. Rc4 {[%emt 0:00:00]} Qxc4 $4 {[%emt 0:00:22][%mdl 8192]} (44... Qxg2 $11 45. Qxd3 Qf1+ 46. Qxf1+ Kxf1 47. Rf4+ Kg2) 45. Bxc4 {[%emt 0:00:00]} e2 {[%emt 0:00:00]} 46. Qf4+ {[%emt 0:00:00]} (46. Qxd3 $2 e1=Q+ (46... e1=B 47. Qf1+ Ke3 48. Qxe1+ Kd4 49. Bb5 Kd5 50. Qxa5 Ke6 51. Qd8) 47. Kb2 Qe2+ (47... Kxg2 48. Qd5+ Bf3 49. Qg5+ Kh1 50. Qf5 $17) 48. Qxe2+ Bxe2 $19) 46... Kg1 {[%emt 0:00:22]} 47. Qe3+ {[%emt 0:00:00]} (47. Bxd3 e1=Q+ (47... e1=B 48. Qf1+ Kh2 49. Qxe1 Kxg2 50. Be4+ Kh3 51. Qc3+ Kh4 52. Qxa5) 48. Kb2 Qf2+ (48... Kxg2 49. Bc2 $17) 49. Qxf2+ Kxf2 $19) 47... Kf1 {[%emt 0:00:05]} 48. Bxd3 {[%emt 0:00:00]} h4 {[%emt 0:00:01]} 49. Bxe2+ {[%emt 0:00:00]} Bxe2 {[%emt 0:00:01]} 50. Qf4+ {[%emt 0:00:00]} 1-0